bitfinex-derivatives/quotes_BTCF0:USTF0_20241231
["timestamp","ask_amount","ask_price","bid_price","bid_amount"]
[1735671943223,0.00159566,94032.0,94030.0,0.3608]
[1735671944535,0.04111748,94032.0,94030.0,0.3608]
[1735671944927,0.04111748,94032.0,94030.0,0.3618]
[1735671945137,0.04511748,94032.0,94030.0,0.3618]
[1735671945837,0.04111748,94032.0,94030.0,0.3618]
[1735671946027,0.04511748,94032.0,94030.0,0.3618]
[1735671949326,0.00559566,94032.0,94030.0,0.3618]
[1735671949533,0.00559566,94032.0,94031.0,0.05324]
[1735671949728,0.00359465,94032.0,94031.0,0.05324]
[1735671950130,0.04094801,94038.0,94031.0,0.3]
[1735671950333,0.11458804,94064.0,94051.0,0.053229]
[1735671950541,0.11458804,94070.0,94063.0,0.3608]
[1735671951028,0.11458804,94070.0,94064.0,0.053221]
[1735671951227,0.11458804,94070.0,94069.0,0.3608]
[1735671951833,0.03967064,94078.0,94069.0,0.3608]
[1735671952064,0.0868947,94080.0,94077.0,0.3608]
[1735671952252,0.00159501,94086.0,94077.0,0.3608]
[1735671952535,0.04186818,94086.0,94077.0,0.3608]
[1735671954438,0.04186818,94086.0,94077.0,0.3628]
[1735671955136,0.04186818,94086.0,94077.0,0.002]
[1735671955438,0.3608,94082.0,94050.0,0.3608]
[1735671955642,0.0868947,94060.0,94050.0,0.3608]
[1735671956142,0.0316,94059.0,94050.0,0.3608]
[1735671957133,0.0316,94059.0,94050.0,0.3618]
[1735671957640,0.0316,94059.0,94050.0,0.001]
[1735671957856,0.0326,94059.0,94050.0,0.001]
[1735671958638,0.0336,94059.0,94050.0,0.001]
[1735671960038,0.3608,94055.0,94033.0,0.3608]
[1735671960239,0.0868947,94043.0,94029.0,0.3608]
[1735671960435,0.0868947,94039.0,94029.0,0.3608]
[1735671961238,0.0868947,94039.0,94033.0,0.3608]
[1735671961639,0.0868947,94039.0,94029.0,0.005]
[1735671961947,0.0868947,94039.0,94029.0,0.007]
[1735671962145,0.0868947,94039.0,94033.0,0.3608]
[1735671962349,0.0878947,94039.0,94033.0,0.3608]
[1735671962846,0.12724172,94039.0,94033.0,0.3608]
[1735671963043,0.12724172,94039.0,94029.0,0.005]
[1735671963643,0.3608,94030.0,93961.0,0.00159651]
[1735671963848,0.3608,93970.0,93961.0,0.00159651]
[1735671964040,0.0868947,93971.0,93949.0,0.0649]
[1735671964041,0.3608,93969.0,93949.0,1.5649]
[1735671964245,0.3608,93958.0,93949.0,0.0649]
[1735671964544,0.3608,93958.0,93947.0,0.31805843]
[1735671964744,0.3608,93958.0,93930.0,0.89589075]
[1735671964745,0.3608,93958.0,93931.0,0.0649]
[1735671965039,0.0868947,93947.0,93937.0,0.6608]
[1735671965366,0.0868947,93947.0,93946.0,0.3608]
[1735671965542,0.09942686,93960.0,93954.0,0.007]
[1735671966142,0.22109158,93958.0,93954.0,0.007]
[1735671966941,0.22209158,93958.0,93954.0,0.016]
[1735671967141,0.22209158,93958.0,93954.0,0.009]
[1735671967347,0.05755782,93957.0,93954.0,0.3608]
[1735671967554,0.22109158,93958.0,93954.0,0.3608]
[1735671967555,0.0301494,93958.0,93957.0,0.053282]
[1735671967854,0.17660824,93963.0,93961.0,0.053279]
[1735671968055,0.06480824,93963.0,93962.0,0.3608]
[1735671968564,0.1261329,93988.0,93962.0,0.414079]
[1735671968759,0.1261329,93988.0,93978.0,0.3608]
[1735671968943,0.3608,93986.0,93962.0,0.3608]
[1735671969143,0.13083902,93980.0,93972.0,0.3608]
[1735671969344,0.3608,93986.0,93972.0,0.3608]
[1735671971253,0.3608,93986.0,93973.0,0.053273]
[1735671971454,0.3608,93986.0,93972.0,0.3618]
[1735671971650,0.3608,93986.0,93972.0,0.3638]
[1735671972457,0.3608,93994.0,93980.0,0.3608]
[1735671972647,0.00104001,94004.0,93992.0,0.053262]
[1735671972847,0.00159637,94005.0,93998.0,0.3608]
[1735671973045,0.00159637,94005.0,93998.0,0.414058]
[1735671973249,0.00159637,94005.0,94003.0,0.053255]
[1735671973444,0.15766612,94007.0,94006.0,0.053254]
[1735671973653,0.15766612,94007.0,94006.0,1.553254]
[1735671974250,0.0323,94037.0,94006.0,1.5]
[1735671974452,0.0323,94037.0,93999.0,0.3608]
[1735671974453,0.0323,94037.0,94015.0,0.3608]
[1735671974645,0.13083902,94030.0,94015.0,0.3608]
[1735671975055,0.03187729,94029.0,94015.0,0.3608]
[1735671975262,0.15766612,94018.0,94006.0,0.011]
[1735671975761,0.15766612,94018.0,94007.0,0.3608]
[1735671976161,0.15766612,94018.0,94009.0,0.053252]
[1735671976660,0.15766612,94012.0,94007.0,0.3608]
[1735671977260,0.15766612,94012.0,94007.0,0.3698]
[1735671977457,0.15766612,94012.0,94009.0,0.002]
[1735671977860,0.15766612,94012.0,94009.0,0.004]
[1735671978262,0.15766612,94012.0,94009.0,0.002]
[1735671978468,0.15766612,94012.0,94007.0,0.3608]
[1735671978655,0.064,94024.0,94007.0,0.3608]
[1735671978656,0.15766612,94011.0,94007.0,0.3608]
[1735671979858,0.15766612,94012.0,94009.0,0.001]
[1735671980253,0.15766612,94012.0,94011.0,0.414051]
[1735671980853,0.15766612,94019.0,94018.0,0.053247]
[1735671981060,0.15766612,94019.0,94018.0,0.714047]
[1735671981858,0.15756612,94019.0,94018.0,0.714047]
[1735671982170,0.18919935,94025.0,94024.0,0.053244]
[1735671982371,0.18919935,94051.0,94041.0,0.053234]
[1735671982566,0.18919935,94051.0,94050.0,0.2608]
[1735671983469,0.0312,94062.0,94050.0,0.2608]
[1735671983654,0.003,94051.0,94050.0,0.2608]
[1735671986274,0.003,94051.0,94050.0,0.2618]
[1735671986773,0.0312,94062.0,94050.0,0.2638]
[1735671987975,0.0312,94062.0,94050.0,0.315029]
[1735671988287,0.0312,94062.0,94050.0,0.317029]
[1735671988673,0.0312,94062.0,94053.0,0.053227]
[1735671991475,0.0312,94062.0,94050.0,0.2608]
[1735671992473,0.0312,94062.0,94057.0,0.053225]
[1735671992674,0.3608,94058.0,94013.0,0.05325]
[1735671992867,0.1197021,94061.0,93985.0,0.0037]
[1735671992868,0.3608,94023.0,93985.0,0.0037]
[1735671993068,0.26167804,94000.0,93985.0,0.0037]
[1735671993369,0.3608,93994.0,93985.0,0.0037]
[1735671993569,0.3608,93994.0,93986.0,0.053265]
[1735671993779,0.3608,93994.0,93985.0,0.0037]
[1735671994177,0.3608,93994.0,93985.0,0.0177]
[1735671994579,0.3608,93994.0,93985.0,0.0087]
[1735671994772,0.3608,93994.0,93986.0,0.009]
[1735671996177,0.3608,93994.0,93985.0,0.0087]
[1735671996377,0.3608,93994.0,93985.0,0.0177]
[1735671996574,0.3608,93994.0,93986.0,0.057265]
[1735671996895,0.0329,93999.0,93988.0,0.053264]
[1735671997075,0.0329,93999.0,93990.0,0.053263]
[1735671997278,0.3608,93997.0,93986.0,0.009]
[1735671997576,0.3608,93997.0,93985.0,0.0167]
[1735671998172,0.3608,93997.0,93990.0,0.007]
[1735671998375,0.3608,93997.0,93990.0,0.0107]
[1735671998571,0.18919935,93994.0,93990.0,0.0107]
[1735671998873,0.18919935,93994.0,93991.0,1.5]
[1735671999776,0.18919935,93993.0,93991.0,1.5]
[1735672000381,0.18919935,93993.0,93991.0,1.507]
[1735672000570,0.18919935,93993.0,93992.0,0.053262]
[1735672000768,0.18760431,93993.0,93992.0,0.414062]
[1735672000971,0.05798046,93996.0,93995.0,0.05326]
[1735672001175,0.05798046,93996.0,93995.0,1.55326]
[1735672001376,0.05798046,93996.0,93995.0,1.85326]
[1735672001768,0.05798046,93996.0,93995.0,1.55326]
[1735672002483,0.3608,94015.0,94008.0,0.053252]
[1735672003882,0.3618,94015.0,94008.0,0.053252]
[1735672004083,0.3618,94015.0,94011.0,0.053251]
[1735672004481,0.3608,94015.0,94011.0,0.053251]
[1735672005383,0.3608,94015.0,94008.0,0.004]
[1735672006074,0.3608,94015.0,94011.0,0.001]
[1735672006485,0.3608,94015.0,94012.0,0.05325]
[1735672006681,0.3608,94015.0,94014.0,0.05325]
[1735672007273,0.0301,94025.0,94022.0,0.053245]
[1735672007496,0.14305777,94063.0,94028.0,0.053242]
[1735672007497,0.49163902,94050.0,94028.0,0.053242]
[1735672007783,0.02513254,94035.0,94028.0,0.053242]
[1735672008584,0.02513254,94035.0,94021.0,0.3608]
[1735672008886,0.0312,94043.0,94031.0,0.05324]
[1735672010204,0.36204001,94050.0,94032.0,0.053239]
[1735672010379,0.3608,94061.0,94031.0,0.001]
[1735672010883,0.3608,94061.0,94050.0,0.053229]
[1735672011086,0.13083902,94060.0,94050.0,0.053229]
[1735672011688,0.3608,94053.0,94050.0,0.053229]
[1735672013380,0.3638,94053.0,94050.0,0.053229]
[1735672014678,0.3638,94053.0,94037.0,0.3608]
[1735672014880,0.3638,94053.0,94052.0,0.053228]
[1735672015880,0.3608,94053.0,94052.0,0.053228]
[1735672016080,0.3638,94053.0,94052.0,0.053228]
[1735672016491,0.3608,94053.0,94052.0,0.053228]
[1735672016692,0.3638,94053.0,94052.0,0.053228]
[1735672018788,0.3638,94053.0,94052.0,0.054228]
[1735672018995,0.3608,94053.0,94052.0,0.054228]
[1735672019292,0.3608,94053.0,94052.0,0.001]
[1735672019790,0.3608,94053.0,94018.0,0.414047]
[1735672020092,0.3608,94043.0,94036.0,0.053237]
[1735672020291,0.3608,94043.0,94031.0,0.05483421]
[1735672020481,0.3608,94043.0,94031.0,0.00159521]
[1735672020681,0.3608,94043.0,94035.0,0.053237]
[1735672021090,0.3608,94051.0,94039.0,0.053235]
[1735672021288,0.3608,94051.0,94031.0,0.00159521]
[1735672021495,0.09167309,94042.0,94039.0,0.053235]
[1735672021691,0.09167309,94042.0,94041.0,0.053234]
[1735672023087,0.09167309,94042.0,94041.0,0.054234]
[1735672023293,0.09167309,94042.0,94041.0,0.002]
[1735672023595,0.45247309,94042.0,94041.0,0.002]
[1735672024595,0.55888179,94042.0,94041.0,0.002]
[1735672024789,0.55888179,94042.0,94041.0,0.001]
[1735672025587,0.55988179,94042.0,94041.0,0.001]
[1735672025782,0.55988179,94042.0,94038.0,0.053236]
[1735672025983,0.56088179,94042.0,94035.0,0.0037]
[1735672026194,0.02141318,94041.0,94035.0,0.0037]
[1735672026390,0.5600818,94042.0,94035.0,0.0037]
[1735672026582,0.02142147,94041.0,94035.0,0.0037]
[1735672027190,0.3608,94039.0,94006.0,0.3608]
[1735672027488,0.3608,94027.0,94017.0,0.053247]
[1735672028395,0.053246,94020.0,94017.0,0.053247]
[1735672028789,0.053246,94020.0,94018.0,0.3628]
[1735672028991,0.053246,94020.0,94018.0,0.002]
[1735672029290,0.3608,94019.0,94018.0,0.002]
[1735672029492,0.3608,94019.0,94017.0,0.053247]
[1735672029698,0.3608,94019.0,94018.0,0.002]
[1735672030194,0.3608,94019.0,94018.0,0.059247]
[1735672030598,0.19060359,94020.0,94019.0,0.053247]
[1735672031788,0.19060359,94020.0,94019.0,1.553247]
[1735672031985,0.19060359,94021.0,94020.0,0.053246]
[1735672032497,0.19060359,94021.0,94020.0,0.414046]
[1735672032684,0.09193918,94026.0,94020.0,0.414046]
[1735672032685,0.09193918,94026.0,94020.0,0.73711996]
[1735672032998,0.25267609,94038.0,94037.0,0.053237]
[1735672033188,0.25267609,94042.0,94037.0,0.414037]
[1735672033414,0.25267609,94042.0,94041.0,0.053234]
[1735672034104,0.053236,94038.0,94037.0,0.00056]
[1735672034291,0.053244,94024.0,94023.0,0.053244]
[1735672035596,0.15176137,94024.0,94023.0,0.053244]
[1735672035793,0.15176137,94024.0,94023.0,0.054244]
[1735672036595,0.15176137,94024.0,94023.0,0.055244]
[1735672036992,0.09851737,94024.0,94023.0,0.055244]
[1735672037596,0.09851737,94024.0,94023.0,1.555244]
[1735672038297,0.05324,94031.0,94023.0,1.502]
[1735672038496,0.053241,94029.0,94028.0,0.053241]
[1735672039804,0.053244,94024.0,94023.0,0.054244]
[1735672040006,0.053244,94024.0,94023.0,0.001]
[1735672040421,0.053244,94024.0,94014.0,0.053249]
[1735672040606,0.053249,94016.0,94014.0,0.053249]
[1735672040807,0.3608,94016.0,93995.0,0.47871553]
[1735672041010,0.0317,94015.0,94000.0,0.053257]
[1735672041199,0.053258,94000.0,93995.0,0.00159553]
[1735672041400,0.053258,94000.0,93999.0,0.053258]
[1735672041601,0.3608,94007.0,93995.0,0.00159553]
[1735672041920,0.3608,94007.0,94004.0,0.053255]
[1735672042209,0.053255,94005.0,94002.0,0.053256]
[1735672042807,0.053252,94010.0,94009.0,0.053252]
[1735672043003,0.3608,94016.0,94000.0,0.006]
[1735672043004,0.3608,94016.0,94002.0,0.02320309]
[1735672043200,0.3608,94016.0,94015.0,0.053249]
[1735672044205,0.05325,94013.0,94010.0,0.053251]
[1735672044509,0.3618,94016.0,94015.0,0.053249]
[1735672044712,0.414048,94016.0,94015.0,0.061249]
[1735672045507,0.053248,94016.0,94015.0,0.058249]
[1735672045708,0.02301239,94025.0,94016.0,0.053248]
[1735672045709,0.053246,94021.0,94016.0,0.053248]
[1735672046014,0.053246,94021.0,94017.0,0.053247]
[1735672046209,0.02301239,94025.0,94017.0,0.053247]
[1735672046210,0.053246,94020.0,94017.0,0.053247]
[1735672046607,0.3608,94018.0,94017.0,0.053247]
[1735672047939,0.3608,94018.0,94017.0,0.059247]
[1735672048303,0.07638829,94025.0,94021.0,0.053246]
[1735672048507,0.053245,94022.0,94017.0,1.50664]
[1735672048710,0.053245,94022.0,94017.0,0.006]
[1735672048913,0.053245,94023.0,94020.0,0.053246]
[1735672049304,0.053245,94023.0,94017.0,0.006]
[1735672049710,0.3608,94018.0,94017.0,0.006]
[1735672050013,0.3608,94018.0,94017.0,0.057248]
[1735672050213,0.00120001,94027.0,94026.0,0.053243]
[1735672050514,0.05483371,94035.0,94026.0,0.053243]
[1735672050515,0.6146761,94042.0,94026.0,0.053243]
[1735672050809,0.61347609,94042.0,94041.0,0.053234]
[1735672051207,0.25267609,94042.0,94041.0,0.053234]
[1735672051427,0.25267609,94042.0,94041.0,1.553234]
[1735672051911,0.22286237,94047.0,94041.0,1.5]
[1735672052108,0.22286237,94047.0,94045.0,0.053232]
[1735672052414,0.22286237,94047.0,94046.0,0.053231]
[1735672053611,0.3608,94052.0,94041.0,0.002]
[1735672053916,0.3608,94052.0,94050.0,0.053229]
[1735672055315,0.3618,94052.0,94050.0,0.053229]
[1735672056109,0.053229,94051.0,94050.0,0.053229]
[1735672057016,0.3618,94052.0,94040.0,0.053235]
[1735672057219,0.053232,94045.0,94040.0,0.053235]
[1735672057414,0.05323,94049.0,94035.0,0.3608]
[1735672057615,0.05323,94049.0,94047.0,0.053231]
[1735672058521,0.05323,94049.0,94048.0,0.05323]
[1735672058716,0.3608,94052.0,94051.0,0.053229]
[1735672059520,0.414025,94057.0,94055.0,0.053226]
[1735672059912,0.3608,94057.0,94043.0,0.3608]
[1735672060113,0.002,94049.0,94048.0,0.05323]
[1735672061720,0.006,94057.0,94056.0,0.053226]
[1735672062215,0.22286237,94062.0,94061.0,0.053223]
[1735672062423,0.22286237,94062.0,94061.0,0.414023]
[1735672062617,0.22286237,94062.0,94061.0,0.053223]
[1735672062929,0.00159528,94066.0,94065.0,0.053221]
[1735672064410,0.00359528,94066.0,94065.0,0.053221]
[1735672065618,0.05681528,94066.0,94065.0,0.053221]
[1735672065818,0.06281528,94066.0,94065.0,0.001]
[1735672068828,0.00959528,94066.0,94065.0,0.001]
[1735672069129,0.00959528,94066.0,94065.0,0.054221]
[1735672071934,0.008,94066.0,94065.0,0.054221]
[1735672072321,0.008,94066.0,94065.0,1.554221]
[1735672073825,0.008,94066.0,94065.0,0.054221]
[1735672074030,0.06122,94066.0,94065.0,0.054221]
[1735672074227,0.008,94066.0,94065.0,0.054221]
[1735672074932,0.008,94066.0,94065.0,0.415021]
[1735672076529,0.003,94066.0,94065.0,0.414021]
[1735672076733,0.003,94066.0,94065.0,1.914021]
[1735672076933,0.001,94066.0,94065.0,1.914021]
[1735672079236,0.3608,94087.0,94065.0,2.1608]
[1735672079436,0.3608,94087.0,94086.0,0.053209]
[1735672080630,0.3698,94087.0,94086.0,0.054209]
[1735672081135,0.009,94087.0,94086.0,0.054209]
[1735672082337,0.011,94087.0,94086.0,0.054209]
[1735672083434,0.009,94087.0,94086.0,0.056209]
[1735672083832,0.1,94100.0,94099.0,0.053201]
[1735672084241,0.0333,94117.0,94105.0,0.053198]
[1735672084432,0.0333,94117.0,94107.0,0.08686149]
[1735672084938,0.0333,94117.0,94116.0,0.053192]
[1735672085527,0.086491,94117.0,94116.0,0.053192]
[1735672085731,0.0333,94117.0,94116.0,0.053192]
[1735672086329,0.0353,94117.0,94116.0,0.053192]
[1735672086736,0.0413,94117.0,94116.0,0.053192]
[1735672086943,0.094491,94117.0,94116.0,0.053192]
[1735672087136,0.0413,94117.0,94116.0,0.053192]
[1735672087441,0.0403,94117.0,94116.0,0.053192]
[1735672088236,0.007,94117.0,94116.0,0.053192]
[1735672088634,0.007,94117.0,94116.0,0.07302551]
[1735672096736,0.031,94135.0,94122.0,0.053188]
[1735672096945,0.053183,94133.0,94132.0,0.053182]
[1735672097747,0.031,94135.0,94132.0,0.053182]
[1735672097946,0.031,94135.0,94134.0,0.053182]
[1735672098143,0.04942967,94135.0,94134.0,0.053182]
[1735672098547,0.031,94135.0,94134.0,0.053182]
[1735672100542,0.033,94135.0,94134.0,0.054182]
[1735672101033,0.001,94135.0,94134.0,0.053182]
[1735672101745,0.0304,94139.0,94135.0,0.053181]
[1735672103650,0.004594,94136.0,94135.0,0.053181]
[1735672108446,0.053184,94132.0,94131.0,0.053182]
[1735672108749,0.3608,94132.0,94109.0,0.053196]
[1735672108956,0.413995,94110.0,94109.0,0.053194]
[1735672110243,0.413995,94110.0,94109.0,0.062194]
[1735672110852,0.414995,94110.0,94109.0,0.062194]
[1735672111155,0.51331022,94110.0,94109.0,0.062194]
[1735672111357,0.45911522,94110.0,94109.0,0.053194]
[1735672111651,0.45911522,94110.0,94109.0,0.055194]
[1735672111852,0.45911522,94110.0,94109.0,0.060194]
[1735672112053,0.3608,94110.0,94109.0,0.060194]
[1735672112242,0.0677,94117.0,94116.0,0.053192]
[1735672112446,0.3608,94118.0,94117.0,0.053191]
[1735672112753,0.3608,94118.0,94109.0,0.003]
[1735672112958,0.3608,94110.0,94109.0,0.056195]
[1735672113361,0.3608,94118.0,94117.0,0.053191]
[1735672113551,0.3628,94118.0,94117.0,0.053191]
[1735672113958,0.46125468,94118.0,94117.0,0.053191]
[1735672114258,0.45925468,94118.0,94117.0,0.053191]
[1735672114965,0.09845468,94118.0,94117.0,0.059191]
[1735672115853,0.09845468,94118.0,94117.0,1.562191]
[1735672116361,0.002,94118.0,94117.0,1.556191]
[1735672116867,0.222764,94123.0,94117.0,1.556191]
[1735672117158,0.222764,94123.0,94122.0,0.413988]
[1735672117356,0.02310706,94124.0,94123.0,0.053188]
[1735672117546,0.053186,94126.0,94125.0,0.053187]
[1735672118349,0.05319,94121.0,94120.0,0.053189]
[1735672118951,0.053191,94118.0,94117.0,0.009]
[1735672119263,0.053201,94100.0,94097.0,0.053202]
[1735672119459,0.3608,94103.0,94095.0,0.19040788]
[1735672119661,0.413999,94103.0,94102.0,0.0532]
[1735672120052,0.3608,94103.0,94095.0,0.19040788]
[1735672120254,0.053202,94099.0,94098.0,0.053202]
[1735672121864,0.053202,94099.0,94098.0,0.056202]
[1735672122666,0.053202,94099.0,94098.0,0.058202]
[1735672124172,0.07644848,94099.0,94098.0,0.058202]
[1735672124663,0.3608,94103.0,94098.0,0.005]
[1735672124863,0.053192,94117.0,94109.0,0.053196]
[1735672125101,0.053192,94117.0,94100.0,0.053201]
[1735672125102,0.222764,94106.0,94105.0,0.053198]
[1735672126461,0.053194,94112.0,94105.0,0.001]
[1735672126657,0.053194,94112.0,94111.0,0.053195]
[1735672127264,0.222764,94113.0,94105.0,0.001]
[1735672127463,0.053198,94107.0,94106.0,0.053197]
[1735672128976,0.1516163,94107.0,94106.0,0.053197]
[1735672129469,0.1516163,94107.0,94106.0,0.001]
[1735672129667,0.5124163,94107.0,94106.0,0.001]
[1735672129972,0.53458805,94107.0,94106.0,0.001]
[1735672130361,0.0532,94103.0,94101.0,0.0532]
[1735672130557,0.09027175,94106.0,94090.0,0.0342]
[1735672130763,0.09027175,94106.0,94071.0,1.53545416]
[1735672130764,0.3608,94097.0,94074.0,0.053215]
[1735672130964,0.05321,94085.0,94084.0,0.05321]
[1735672131475,0.3608,94087.0,94071.0,0.00159416]
[1735672131668,0.0356,94084.0,94071.0,0.00159416]
[1735672131868,0.0356,94084.0,94083.0,0.053211]
[1735672132369,0.3608,94087.0,94086.0,0.053209]
[1735672133177,0.0224719,94091.0,94085.0,0.0349]
[1735672133366,0.222764,94092.0,94085.0,0.0349]
[1735672133566,0.222764,94092.0,94091.0,0.053206]
[1735672133771,0.053205,94093.0,94085.0,0.0349]
[1735672134071,0.3608,94097.0,94096.0,0.053203]
[1735672134478,0.222764,94100.0,94099.0,0.053201]
[1735672134774,0.222764,94100.0,94099.0,1.553201]
[1735672135169,0.02226888,94107.0,94099.0,1.553201]
[1735672135370,0.3608,94109.0,94108.0,0.053196]
[1735672138373,0.3628,94109.0,94108.0,0.053196]
[1735672138574,0.3628,94109.0,94108.0,0.054196]
[1735672138774,0.3628,94109.0,94108.0,0.001]
[1735672139093,0.413996,94109.0,94108.0,0.002]
[1735672139779,0.62532091,94109.0,94108.0,0.002]
[1735672140579,0.90958151,94109.0,94108.0,0.001]
[1735672141278,0.053201,94100.0,94095.0,0.053203]
[1735672141477,0.3608,94096.0,94095.0,0.053203]
[1735672141867,0.3608,94096.0,94091.0,0.053206]
[1735672142070,0.053205,94093.0,94092.0,0.053205]
[1735672142272,0.0347,94095.0,94079.0,1.5]
[1735672142478,0.08686149,94090.0,94082.0,0.053211]
[1735672142675,0.053212,94082.0,94078.0,0.053213]
[1735672142882,0.053212,94081.0,94073.0,0.0338]
[1735672143083,0.053212,94081.0,94079.0,0.053212]
[1735672143376,0.053216,94075.0,94074.0,0.053215]
[1735672144578,0.1520226,94080.0,94079.0,0.053213]
[1735672146069,0.0988096,94080.0,94079.0,0.053213]
[1735672146280,0.0429096,94080.0,94079.0,0.053213]
[1735672146678,0.0429096,94080.0,94079.0,1.559213]
[1735672146879,0.053209,94087.0,94086.0,0.053208]
[1735672147683,0.053209,94087.0,94086.0,1.553208]
[1735672147874,0.053212,94080.0,94079.0,0.015]
[1735672148277,0.053212,94080.0,94079.0,0.059213]
[1735672149371,0.053212,94080.0,94079.0,0.053213]
[1735672150277,0.054212,94080.0,94079.0,0.068213]
[1735672152285,0.054212,94080.0,94079.0,1.568213]
[1735672153175,0.054212,94080.0,94079.0,0.068213]
[1735672158189,0.001,94080.0,94079.0,0.068213]
[1735672159089,0.00159451,94099.0,94079.0,0.068213]
[1735672159390,0.00159451,94099.0,94098.0,0.053202]
[1735672160877,0.05479551,94099.0,94098.0,0.053202]
[1735672161079,0.00159451,94099.0,94087.0,0.3608]
[1735672161292,0.053203,94097.0,94095.0,0.053204]
[1735672161691,0.00159451,94099.0,94098.0,0.053202]
[1735672161887,0.61668442,94107.0,94098.0,0.003]
[1735672162085,0.61548441,94107.0,94106.0,0.053198]
[1735672162591,0.61548441,94107.0,94096.0,0.3608]
[1735672162592,0.3608,94107.0,94096.0,0.3608]
[1735672162784,0.3608,94107.0,94100.0,0.0532]
[1735672162983,0.0532,94103.0,94101.0,0.0532]
[1735672163583,0.0532,94102.0,94101.0,0.0532]
[1735672163790,0.053203,94097.0,94096.0,0.053203]
[1735672164484,0.1456989,94097.0,94096.0,0.053203]
[1735672164891,0.0924959,94097.0,94096.0,0.053203]
[1735672165695,0.053201,94101.0,94100.0,0.053201]
[1735672166498,0.1456969,94101.0,94100.0,0.053201]
[1735672167890,0.1456969,94101.0,94100.0,0.054201]
[1735672168290,0.0924959,94101.0,94100.0,0.055201]
[1735672168795,0.0924959,94101.0,94100.0,0.061201]
[1735672169998,0.36208,94112.0,94111.0,0.053195]
[1735672170198,0.413994,94112.0,94111.0,0.053195]
[1735672174695,0.3608,94112.0,94097.0,0.053202]
[1735672174999,0.053197,94108.0,94097.0,0.053202]
[1735672175803,0.3608,94112.0,94095.0,0.3608]
[1735672176006,0.3608,94112.0,94111.0,0.053195]
[1735672176205,0.413994,94112.0,94111.0,0.053195]
[1735672178705,0.3618,94112.0,94111.0,0.053195]
[1735672178906,0.001,94112.0,94111.0,0.053195]
[1735672179210,0.001,94112.0,94111.0,1.553195]
[1735672179606,0.3608,94130.0,94111.0,1.5]
[1735672179909,0.3608,94130.0,94125.0,0.053187]
[1735672180102,0.413984,94130.0,94125.0,0.053187]
[1735672180406,0.02502102,94128.0,94125.0,0.053187]
[1735672181115,0.00259412,94126.0,94125.0,0.053187]
[1735672181810,0.00459412,94126.0,94125.0,0.054187]
[1735672182229,0.00359412,94126.0,94125.0,0.053187]
[1735672182412,0.00259412,94126.0,94125.0,0.053187]
[1735672182603,0.00459412,94126.0,94125.0,0.053187]
[1735672186212,0.003,94126.0,94125.0,0.053187]
[1735672187508,0.053185,94129.0,94120.0,0.0347]
[1735672187719,0.053185,94129.0,94128.0,0.053185]
[1735672188017,0.15815567,94129.0,94128.0,0.053185]
[1735672188919,0.14537916,94129.0,94128.0,0.055185]
[1735672189617,0.09219416,94129.0,94128.0,0.055185]
[1735672190723,0.09219416,94129.0,94128.0,0.056185]
[1735672191015,0.33280792,94131.0,94128.0,0.003]
[1735672191418,0.053179,94138.0,94132.0,0.053182]
[1735672191610,0.75380371,94139.0,94135.0,0.053181]
[1735672191611,0.053182,94136.0,94135.0,0.053181]
[1735672194022,0.054182,94136.0,94135.0,0.053181]
[1735672195321,0.001,94136.0,94135.0,0.053181]
[1735672197015,0.02553905,94140.0,94139.0,0.053179]
[1735672197325,0.3608,94141.0,94140.0,0.053178]
[1735672197825,0.413978,94141.0,94140.0,0.053178]
[1735672198516,0.43958767,94141.0,94140.0,0.053178]
[1735672199228,0.63111563,94141.0,94140.0,0.053178]
[1735672199429,0.65326968,94141.0,94140.0,0.053178]
[1735672199918,0.65426968,94141.0,94140.0,0.053178]
[1735672200313,0.053179,94140.0,94133.0,0.053182]
[1735672200547,0.053181,94136.0,94135.0,0.053181]
[1735672200713,0.07533205,94140.0,94139.0,0.053179]
[1735672200913,0.02215405,94140.0,94139.0,0.053179]
[1735672201215,0.03437596,94140.0,94139.0,0.053179]
[1735672201420,0.21368201,94140.0,94139.0,0.053179]
[1735672201724,0.19152796,94140.0,94139.0,0.053179]
[1735672202525,0.0895531,94145.0,94144.0,0.053176]
[1735672203728,0.28773426,94145.0,94144.0,0.053176]
[1735672205324,0.28773426,94145.0,94144.0,0.413976]
[1735672205543,0.23423426,94145.0,94144.0,0.413976]
[1735672206227,0.0905531,94145.0,94144.0,1.913976]
[1735672206822,0.0895531,94145.0,94144.0,1.913976]
[1735672207531,0.00159366,94160.0,94145.0,0.053175]
[1735672207724,0.00159366,94160.0,94159.0,0.053168]
[1735672207923,0.05476066,94160.0,94159.0,0.053168]
[1735672208332,0.00159366,94160.0,94159.0,0.053168]
[1735672209431,0.05476066,94160.0,94159.0,0.053168]
[1735672209932,0.05576066,94160.0,94159.0,0.054168]
[1735672210130,0.05776066,94160.0,94159.0,0.054168]
[1735672213125,0.00459366,94160.0,94159.0,0.054168]
[1735672219121,0.00459366,94160.0,94151.0,0.3608]
[1735672219326,0.053172,94152.0,94151.0,0.413972]
[1735672220338,0.14098711,94152.0,94151.0,0.413972]
[1735672220528,0.14098711,94152.0,94151.0,0.053172]
[1735672220745,0.08781511,94152.0,94142.0,0.3608]
[1735672221036,0.0329,94151.0,94150.0,0.053173]
[1735672221835,0.086072,94151.0,94150.0,0.053173]
[1735672222227,0.120172,94151.0,94150.0,0.053173]
[1735672222626,0.20798711,94151.0,94150.0,0.053173]
[1735672222837,0.21098711,94151.0,94150.0,0.053173]
[1735672223127,0.21098711,94151.0,94150.0,0.055173]
[1735672223348,0.20798711,94151.0,94150.0,0.055173]
[1735672223733,0.20798711,94151.0,94150.0,0.054173]